{"text_format":"1","workbook":"xlsx","n_sheets":8,"sheets":["Раздел0","Раздел1","Раздел2","Раздел3","Раздел4","Раздел5","Раздел6","Раздел7"],"not_rendered":{"charts":0,"images":0,"macros":1,"external_links":0,"defined_names":1,"comments":0,"pivot_tables":0},"unopened":[],"bounds":{"document_bytes":16777216,"sheet_cells":100000,"rows_first":2000,"rows_last":500,"rows_between":2000,"halvings":0,"cell_chars":16384,"cell_head_chars":4096},"cells_cut":0,"cells_raw":0,"read":"whole","date_system":"1900"}

{"sheet":"Раздел0","index":0,"n_rows":25,"n_cols":7,"rows_kept":25,"cut":false,"hidden":false,"merged":[[24,0,24,1],[24,2,24,3],[24,4,24,5],[23,0,23,1],[23,2,23,3],[23,4,23,5],[10,1,10,2],[19,0,19,1],[19,2,19,6],[20,0,20,1],[20,2,20,6],[13,0,13,2],[14,3,15,3],[16,0,16,2],[17,0,17,2],[1,0,1,5],[3,0,3,5],[5,0,5,5],[7,0,7,5],[9,0,9,5],[21,0,22,1],[21,2,21,6],[22,2,22,3],[22,4,22,5],[14,0,15,2]]}
[]
["ФЕДЕРАЛЬНОЕ СТАТИСТИЧЕСКОЕ НАБЛЮДЕНИЕ"]
[]
["КОНФИДЕНЦИАЛЬНОСТЬ ГАРАНТИРУЕТСЯ ПОЛУЧАТЕЛЕМ ИНФОРМАЦИИ"]
[]
["Нарушение порядка предоставления первичных статистических данных, или несвоевременное предоставление этих данных, либо предоставление\nнедостоверных первичных статистических данных влечет ответственность, установленную статьей\n13.19 Кодекса Российской Федерации об административных правонарушениях от 30.12.2001 N\n195-ФЗ, а также статьей 3 Закона Российской Федерации от 13.05.1992 N 2761-1 \"Об\nответственности за нарушение порядка представления государственной статистической\nотчетности\""]
[]
["ВОЗМОЖНО ПРЕДОСТАВЛЕНИЕ В ЭЛЕКТРОННОМ ВИДЕ"]
[]
["СВЕДЕНИЯ  О  ФИЗИЧЕСКОЙ  КУЛЬТУРЕ  И  СПОРТЕ "]
[null,"по состоянию на 31 декабря 20",null,22,"г."]
[]
[]
["Предоставляют: ",null,null,"Сроки\nПредоставления",null,"Форма № 1-ФК"]
["юридические лица, включая общественные организации, осуществляющие деятельность по физической культуре и спорту:\n- органу местного самоуправления в области физической культуры и спорта ",null,null,"15 января после\nотчетного периода",null,"Приказ Росстата:\nОб утверждении формы\nот 27.03.2019 N 172\nО внесении изменений\n(при наличии)\nот __________ N ___\nот __________ N ___"]
[null,null,null,null,null,"Годовая"]
["орган местного самоуправления в области физической культуры и спорта:\n- органу исполнительной власти субъектов Российской Федерации в области физкультуры и спорта\n",null,null,"25 января после\nотчетного периода"]
["органы исполнительной власти субъектов Российской Федерации в области физкультуры и спорта:\n- Минспорту России",null,null,"10 февраля после\nотчетного периода"]
[]
["Наименование отчитывающейся организации",null,"Муниципальное автономное образовательное учреждение дополнительного образования Городского округа \"город Ирбит\" Свердловской области \"Детско-юношеская спортивная школа\" (МАОУ ДО \"Ирбитская ДЮСШ\")"]
["Почтовый адрес ",null,"623856, Свердловская область, город Ирбит, улица Азева, д. 12 А"]
["Код формы по ОКУД",null,"Код"]
[null,null,"отчитывающейся\nорганизации по ОКПО ( для территориально обособленного подразделения - идентификационный номер)"]
[1,null,2,null,3,null,4]
[609402,null,46367277,null,"85.41.9",null,65432000000]

{"sheet":"Раздел1","index":1,"n_rows":21,"n_cols":13,"rows_kept":21,"cut":false,"hidden":false,"merged":[[0,0,0,12],[2,0,4,0],[2,1,4,1],[2,2,4,2],[2,3,2,11],[1,0,1,12],[2,12,4,12],[3,3,4,3],[3,4,4,4],[3,5,3,6],[3,7,4,7],[3,8,3,10],[3,11,4,11]]}
["Раздел I. Кадры"]
["Код по ОКЕИ: человек - 792"]
["Штатные работники физической\nкультуры и спорта","N\nстрок\nи","Всего","из общей численности штатных работников (гр. 3):",null,null,null,null,null,null,null,null,"Колич\nество\nваканс\nий"]
[null,null,null,"специалисты,\nвпервые\nприступившие к\nработе в области\nфизической\nкультуры и спорта\nв отчетном\nпериоде","в\nсельск\nой\nместн\nости","со специальным\nобразованием",null,"имею\nщие\nучену\nю\nстепен\nь","в возрасте ",null,null,"женщ\nины"]
[null,null,null,null,null,"высшим","средним",null,"до\n30\nлет","31 -\n60\nлет","стар\nше\n60\nлет"]
[1,2,3,4,5,6,7,8,9,10,11,12,13]
["Всего штатных работников физической культуры и спорта  (сумма строк 02-09, 12-14)",1,{"$f":"SUM(C8:C15)+SUM(C18:C20)","v":35},{"$f":"SUM(D8:D15)+SUM(D18:D20)","v":1},{"$f":"SUM(E8:E15)+SUM(E18:E20)","v":0},{"$f":"SUM(F8:F15)+SUM(F18:F20)","v":29},6,0,5,27,3,12,0]
["в том числе:\nдошкольных образовательных организаций, осуществляющих работу по физической культуре и спорту",2,{"$f":"SUM(I8:K8)","v":0}]
["общеобразовательных организаций, осуществляющих работу по физической культуре и спорту",3,{"$f":"SUM(I9:K9)","v":0}]
["организаций профессионального образования, осуществляющих работу по физической культуре и спорту",4,0]
["образовательных организаций высшего  образования, осуществляющих работу по физической культуре и спорту",5,0]
["организаций дополнительного образования детей, осуществляющих работу по физической культуре и спорту, в том числе спортивную подготовку",6,35,1,0,29,6,0,5,27,3,12,0]
["предприятий, организаций и учреждений",7,0]
["спортивных сооружений",8,0]
["физкультурно-спортивных клубов",9,{"$f":"SUM(I15+J15+K15)","v":0}]
["из них:\n    фитнес-клубов",10,0]
["    детских и подростковых ",11,0]
["аппаратов физкультурно-спортивных организаций всех уровней",12,0]
["органов  управления физической культурой и спортом всех уровней",13,0]
["другие, в том числе адаптивной физической культуры и спорта",14,0]
["Из общего числа  (строка 01) высокопроизводительных  рабочих мест",15,0]

{"sheet":"Раздел2","index":2,"n_rows":36,"n_cols":17,"rows_kept":36,"cut":false,"hidden":false,"merged":[[0,0,0,16],[1,0,1,16],[2,0,5,0],[2,1,5,1],[2,2,5,2],[2,3,2,12],[2,13,5,13],[2,14,5,14],[2,15,5,15],[2,16,5,16],[3,3,5,3],[3,4,3,12],[4,4,4,9],[4,10,5,10],[4,11,5,11],[4,12,5,12],[31,1,35,4],[35,6,35,7]]}
["Раздел II. Физкультурно-оздоровительная работа"]
["Коды по ОКЕИ: единица - 642; человек - 792"]
["Учреждения,\nпредприятия,\nобъединения,\nорганизации","N\nстрок\nи","Количест\nво\nучрежден\nий,\nпредприя\nтий,\nорганиза\nций,\nвсего\n(ед.)","Численность занимающихся физической культурой и\nспортом (человек)",null,null,null,null,null,null,null,null,null,"Посеща\nют\nучебные\nзанятия\nпо\nфизическ\nой\nкультуре\n(человек)","Численнос\nть\nобучающих\nся,\nотнесенны\nх по\nсостоянию\nздоровья к\nспецмедгру\nппе\n(человек)","из них\nпосещаю\nт занятия\nпо\nфизическ\nой\nкультуре\nв\nспецмедг\nруппе\n(человек)","из\nобщей\nчисленн\nости\nзанима\nющихся\n(гр. 4) -\nна\nплатной\nоснове"]
[null,null,null,"Всего","из общей численности занимающихся (гр. 4):"]
[null,null,null,null,"в возрасте",null,null,null,null,null,"жен\nщин\nы","в\nсельск\nой\nместно\nсти","работ\nающи\nе"]
[null,null,null,null,"3 - 15лет","16-18 лет","19-29 лет","30-54 (женщины), 59 (муж-чины) лет","55 (жен-щины), 60 (муж-чины) – 79 лет","80 и\nстарш\nе"]
[1,2,3,4,5,6,7,8,9,10,11,12,13,14,15,16,17]
["Всего учреждений, предприятий, объединений, организаций (сумма строк 17, 18, 20, 22, 24, 25, 27, 28, 31)",16,{"$f":"SUM(C9,C10,C12,C14,C16,C17,C19,C20,C23)","v":1},1169,1042,106,21,0,0,0,341,0,8,0,0,0,86]
["в том числе:\nдошкольные\nобразовательные\nорганизации",17,null,{"$f":"SUM(E9)","v":0},null,"X","X","X","X","X",null,null,"X"]
["общеобразовательные\nорганизации",18,null,{"$f":"SUM(E10:G10)","v":0},null,null,null,"X","X","X",null,null,"X"]
["из них имеющие\nспортивные клубы",19,null,{"$f":"SUM(E11:G11)","v":0},null,null,null,"X","X","X",null,null,"X","X","X","X"]
["организации\nпрофессионального\nобразования",20,null,{"$f":"SUM(E12:G12)","v":0},null,null,null,"X","X","X"]
["из них имеющие\nспортивные клубы",21,null,{"$f":"SUM(E13:G13)","v":0},null,null,null,"X","X","X",null,null,null,"X","X","X"]
["образовательные\nорганизации высшего\nобразования",22,null,{"$f":"SUM(E14:H14)","v":0},null,null,null,null,"X","X"]
["из них имеющие\nспортивные клубы",23,null,{"$f":"SUM(E15:J15)","v":0},null,null,null,null,null,null,null,null,null,"X","X","X"]
["организации дополнительного  образования детей и осуществляющие спортивную подготовку",24,1,{"$f":"SUM(E16:H16)","v":1169},1042,106,21,null,"X","X",341,0,8,"X","X","X",86]
["предприятия,\nучреждения,\nорганизации",25,null,{"$f":"SUM(F17:J17)","v":0},"X",null,null,null,null,null,null,null,null,"X","X","X"]
["из них имеющие\nспортивные клубы",26,null,{"$f":"SUM(E18:J18)","v":0},null,null,null,null,null,null,null,null,null,"X","X","X"]
["учреждения и\nорганизации при\nспортивных сооружениях",27,null,{"$f":"SUM(E19:J19)","v":0},null,null,null,null,null,null,null,null,null,"X","X","X"]
["физкультурно-спортивные клубы",28,null,{"$f":"SUM(E20:J20)","v":0},null,null,null,null,null,null,null,null,null,"X","X","X"]
["   из них:\n        фитнес-клубы\n",29,null,{"$f":"SUM(E21:J21)","v":0},null,null,null,null,null,null,null,null,null,"X","X","X"]
["        детские и \n        подростковые",30,null,{"$f":"SUM(E22:G22)","v":0},null,null,null,"X","X","X",null,null,null,"X","X","X"]
["другие учреждения и\nорганизации, в том\nчисле адаптивной\nфизической культуры и\nспорта",31,null,{"$f":"SUM(E23:J23)","v":0},null,null,null,null,null,null,null,null,null,"X","X","X"]
["Из общего числа (строка 16) - физкультурно-спортивные клубы, их объединения и организации, осуществляющие подготовку населения к выполнению нормативов испытаний (тестов) комплекса ГТО",32,null,{"$f":"SUM(E24:J24)","v":0},null,null,null,null,null,null,null,null,null,"X","X","X"]
["Из общего числа (строка 16) - организации, развивающие различные формы хореографического искусства",33,null,{"$f":"SUM(E25:J25)","v":0},null,null,null,null,null,null,null,null,null,"X","X","X"]
["Из общего числа \n(строка 16) - в форме малых предприятий\n",34,null,{"$f":"SUM(E26:J26)","v":0},null,null,null,null,null,null,null,null,null,"X","X","X"]
["Из общего числа \n(строка 16) - в сельской местности\n",35,null,{"$f":"SUM(E27:J27)","v":0},null,null,null,null,null,null,null,{"$f":"SUM(L9,L10,L12,L14,L16,L17,L19,L20,L23)","v":0}]
[]
[]
[]
[]
["Справочно:","Количество физкультурных и спортивных мероприятий, проведенных организацией самостоятельно в отчетный период"]
[]
[]
[]
[null,null,null,null,null,"(36)",11]

{"sheet":"Раздел3","index":3,"n_rows":42,"n_cols":14,"rows_kept":42,"cut":false,"hidden":false,"merged":[[3,11,4,11],[0,0,0,13],[1,0,1,13],[2,0,4,0],[2,1,4,1],[2,2,2,6],[2,7,2,9],[2,10,2,11],[2,12,4,12],[2,13,4,13],[3,2,4,2],[3,3,3,6],[3,7,4,7],[3,8,4,8],[3,9,4,9],[3,10,4,10]]}
["Раздел III. Спортивная инфраструктура"]
["Коды по ОКЕИ: единица - 642; человек - 792"]
["Наименование\nспортивного\nсооружения","N\nстрок\nи","Количество спортсооружений (ед.) ",null,null,null,null,"Из общего числа спортивных\nсооружений (из гр. 3)",null,null,"Единовременная пропускная способность (человек)",null,"Загруженность","Мощность"]
[null,null,"Всего","в том числе по формам\nсобственности:",null,null,null,"для\nспортивной\nподготовки и\nпроведения\nсоревнований","находящиеся в аварийном состоянии","в\nсельской\nместности","Всего","из них в сельской местности"]
[null,null,null,"федера\nльной","субъектов Российской Федерации","муниц\nипальн\nой","другой"]
[1,2,3,4,5,6,7,8,9,10,11,12,13,14]
["Всего спортивных сооружений с учетом объектов городской и рекреационной инфраструктуры, приспособленных для занятий физической культурой и спортом (сумма строк 38, 67)",37,{"$f":"SUM(C8,C37)","v":4},{"$f":"SUM(D8,D37)","v":0},0,{"$f":"SUM(F8,F37)","v":4},0,0,0,0,624,0,332640,1542528]
["Всего спортивных сооружений (сумма строк  39, 40, 43, 48, 49, 52,53, 59 -61, 65, 66)",38,{"$f":"SUM(C9:C10,C13,C18,C19,C22,C23,C29:C31,C35:C36)","v":4},{"$f":"SUM(D9:D10,D13,D18,D19,D22,D23,D29:D31,D35:D36)","v":0},0,4,{"$f":"SUM(G9:G10,G13,G18,G19,G22,G23,G29:G31,G35:G36)","v":0},0,0,0,624,0,332640,1542528]
["в том числе:\nСтадионы с трибунами на 1500 мест и более",39,{"$f":"SUM(D9:G9)","v":0}]
["Плоскостные спортивные сооружения – всего",40,{"$f":"SUM(D10:G10)","v":0}]
["- из них футбольные поля",41,0]
["Площадь плоскостных спортивных сооружений (м2) ",42,0,null,null,null,null,null,null,null,"X","X","X","X"]
["Спортивные залы - всего",43,0]
["из них размером:\n- (42 х 24 м)",44,0]
["- (36 х 18 м), (30 х 18 м),\n  (30 х 15 м)",45,0]
["- (24 х 12 м) и (18 х 9 м)",46,0]
["Площадь спортивных залов (м2)",47,0,null,null,null,null,null,null,null,"X","X","X","X"]
["Крытые спортивные объек-ты с искусственным льдом",48,0]
["Манежи - всего ",49,0]
["из них:\n- легкоатлетические",50,0]
["- футбольные",51,0]
["Велотреки, велодромы",52,0]
["Плавательные бассейны - всего",53,0]
["из них:\n   - 50 - метровые",54,0]
["   - 25 - метровые",55,0]
["   - для прыжков в воду",56,0]
["Площадь зеркала воды плавательных бассейнов (м2)",57,0,null,null,null,null,null,null,null,"X","X","X","X"]
["Из общего числа бассейнов \n(строка 53) - крытые",58,0]
["Лыжные базы",59,0]
["Биатлонные комплексы",60,0]
["Сооружения для стрелковых видов спорта – всего (сумма строк 62-64)",61,{"$f":"SUM(C32:C34)","v":0},{"$f":"SUM(D32:D34)","v":0},{"$f":"SUM(E32:E34)","v":0},{"$f":"SUM(F32:F34)","v":0},{"$f":"SUM(G32:G34)","v":0},0,0,0,0,0,0,0]
["в том числе:\n- тиры",62,0]
["- стрельбища",63,0]
["- стенды",64,0]
["Гребные базы и каналы",65,0]
["Другие спортивные сооружения - всего",66,4,null,null,4,null,null,null,null,624,null,332640,1542528]
["Объекты городской и рекреационной инфраструктуры, приспособленные для занятий физической культурой и спортом - всего (сумма строк 68-72)",67,0,{"$f":"SUM(D38:D42)","v":0},{"$f":"SUM(E38:E42)","v":0},{"$f":"SUM(F38:F42)","v":0},{"$f":"SUM(G38:G42)","v":0},"Х","Х",{"$f":"SUM(J38:J42)","v":0},{"$f":"SUM(K38:K42)","v":0},{"$f":"SUM(L38:L42)","v":0},"Х","Х"]
["в том числе:\n-универсальная игровая площадка",68,0,null,null,null,null,"Х","Х",null,null,null,"Х","Х"]
["- дистанция (велодорожка)",69,0,null,null,null,null,"Х","Х",null,null,null,"Х","Х"]
["- спот (плаза начального уровня)",70,0,null,null,null,null,"Х","Х",null,null,null,"Х","Х"]
["- площадка с тренажерами",71,0,null,null,null,null,"Х","Х",null,null,null,"Х","Х"]
["- каток (сезонный)",72,0,null,null,null,null,"Х","Х",null,null,null,"Х","Х"]

{"sheet":"Раздел4","index":4,"n_rows":34,"n_cols":9,"rows_kept":34,"cut":false,"hidden":false,"merged":[[31,1,33,4],[33,6,33,7],[16,1,20,4],[20,6,20,7],[22,1,25,4],[25,6,25,7],[27,1,29,4],[29,6,29,7],[0,0,0,8],[1,0,1,8],[2,0,5,0],[2,1,5,1],[2,2,2,5],[2,6,5,6],[2,7,5,7],[2,8,5,8],[3,2,5,2],[3,3,3,5],[4,3,5,3],[4,4,4,5]]}
["Раздел IV. Финансирование физической культуры и спорта"]
["Код по ОКЕИ: тысяча рублей - 384\n(с одним десятичным знаком)"]
["Статьи расходов","N\nстрок\nи","Фактически выделено бюджетных средств ",null,null,null,"Получен\nо из\nвнебюд\nжетных\nисточни\nков","Всего\nизрасход\nовано на\nразвитие\nфизическ\nой\nкультуры\nи спорта","Из гр. 8 по разделу\n1100 \"Физическая\nкультура и спорт\" бюджетной классификации Российской"]
[null,null,"Всего","в том числе"]
[null,null,null,"из\nфедераль\nного\nбюджета","из консолидированного\nбюджета субъекта\nРоссийской Федерации:"]
[null,null,null,null,"бюджет\nсубъекта \nРоссийской\nФедерации","бюджет\nмуниципального\nобразования"]
[1,2,3,4,5,6,7,8,9]
["Расходы – всего (сумма строк 74-80)",73,{"$f":"SUM(C9:C15)","v":37922.9},{"$f":"SUM(D9:D15)","v":0},393.3,37529.599999999999,1345.7,{"$f":"SUM(H9:H15)","v":39268.600000000006},8779]
["в том числе:\nПроведение спортивных\nмероприятий",74,{"$f":"SUM(D9:F9)","v":600.1},null,null,600.1,107.7,{"$f":"SUM(G9,C9)","v":707.80000000000007},417.4]
["Приобретение спортивного\nоборудования и инвентаря",75,{"$f":"SUM(D10:F10)","v":210},null,null,210,null,210]
["Капитальный ремонт\nспортсооружений",76,0,null,null,null,null,0]
["Инвестиции на\nреконструкцию и\nстроительство спортивных\nсооружений",77,0,null,null,null,null,0]
["Заработная плата\nработников физической\nкультуры и спорта",78,28566.9,null,null,28566.9,282,28848.9,8261.6]
["Cодержание спортивных\nсооружений",79,5654.1,null,null,5654.1,956,6610.1,100]
["Другие",80,2891.8,null,393.3,2498.5,null,2891.8]
[]
["Справочно:","Поступило средств от предоставления \nплатных услуг  от занятий\nв клубах, секциях, группах \nфизкультурно-оздоровительной\nнаправленности"]
[]
[]
[]
[null,null,null,null,null,"(81)",284.7,null,"тыс. руб."]
[]
[null,"Поступило средств от проведения \nспортивно-зрелищных мероприятий"]
[]
[]
[null,null,null,null,null,"(82)",null,null,"тыс. руб."]
[]
[null,"Из гр. 9 израсходовано по подразделу 02\n «Массовый спорт»"]
[]
[null,null,null,null,null,"(83)",null,null,"тыс. руб."]
[]
[null,"Из гр. 9 израсходовано по подразделу 03 \n«Спорт высших достижений»"]
[]
[null,null,null,null,null,"(84)",null,null,"тыс. руб."]

{"sheet":"Раздел5","index":5,"n_rows":171,"n_cols":19,"rows_kept":171,"cut":false,"hidden":false,"merged":[[0,0,0,16],[1,0,1,16],[2,0,5,0],[2,1,5,1],[2,2,2,10],[4,5,4,6],[4,8,4,10],[3,4,3,6],[3,11,5,11],[3,3,5,3],[4,4,5,4],[3,2,5,2],[2,18,5,18],[2,14,2,16],[3,14,5,14],[3,15,4,16],[3,7,3,10],[2,11,2,13],[2,17,5,17],[4,7,5,7],[3,12,4,13]]}
["Раздел V. Развитие видов спорта и двигательной активности"]
["Код по ОКЕИ: человек - 792"]
["Виды спорта","N\nстроки","Численность\nзанимающихся и их квалификация \n(человек)",null,null,null,null,null,null,null,null,"Число спортивных судей",null,null,"Число штатных тренеров, \nтренеров-преподавателей (человек)",null,null,"всего","женщин"]
[null,null,"Всего","из них\nженщины","Спортивные разряды",null,null,"Спортивные звания",null,null,null,"Всего","из них:",null,"Всего","Со спепциальным образованием"]
[null,null,null,null,"Всего","из них:",null,"Всего","из них:"]
[null,null,null,null,null,"1 разряд","КМС",null,"МС","МСМК","ЗМС",null,"1 категории","всероссийской категории",null,"Высшим","Средним"]
[1,2,3,4,5,6,7,8,9,10,11,12,13,14,15,16,17]
["Всего видов спорта (сумма строк 86-187, 189-217, 218, 221, 230, 241, 248)",85,{"$f":"SUM(C9:C110,C112:C140,C141,C144,C153,C164,C171)","v":1169},{"$f":"SUM(D9:D110,D112:D140,D141,D144,D153,D164,D171)","v":341},{"$f":"SUM(E9:E110,E112:E140,E141,E144,E153,E164,E171)","v":615},{"$f":"SUM(F9:F110,F112:F140,F141,F144,F153,F164,F171)","v":44},27,5,5,0,0,{"$f":"SUM(L9:L110,L112:L140,L141,L144,L153,L164,L171)","v":19},13,0,{"$f":"SUM(O9:O110,O112:O140,O141,O144,O153,O164,O171)","v":13},{"$f":"SUM(P9:P110,P112:P140,P141,P144,P153,P164,P171)","v":7},5,{"$f":"Раздел2!D8","v":1169},{"$f":"Раздел2!K8","v":341}]
["в том числе:\nАвиамодельный спорт",86,null,null,null,null,null,{"$f":"SUM(I9+J9+K9)","v":0}]
["Автомобильный спорт",87,null,null,null,null,null,0]
["Айкидо",88,null,null,null,null,null,0]
["Акробатический рок-н-ролл",89,null,null,null,null,null,0]
["Альпинизм",90,null,null,null,null,null,0]
["Американский футбол",91,null,null,null,null,null,0]
["Армреслинг",92,null,null,null,null,null,0]
["Бадминтон",93,null,null,null,null,null,0]
["Баскетбол",94,null,null,null,null,null,0]
["Бейсбол",95,null,null,null,null,null,0]
["Биатлон",96,null,null,null,null,null,0]
["Бильярдный спорт",97,null,null,null,null,null,0]
["Бобслей",98,null,null,null,null,null,0]
["Бодибилдинг",99,null,null,null,null,null,0]
["Бокс",100,null,null,null,null,null,0]
["Борьба на поясах",101,null,null,null,null,null,0]
["Боулинг",102,null,null,null,null,null,0]
["Велосипедный спорт",103,null,null,null,null,null,0]
["Вертолетный спорт",104,null,null,null,null,null,0]
["Водно-моторный спорт",105,null,null,null,null,null,0]
["Водное поло",106,null,null,null,null,null,0]
["Воднолыжный спорт ",107,null,null,null,null,null,0]
["Воздухоплавательный спорт",108,null,null,null,null,null,0]
["Воздушно-силовая втлетика (воркаут)",109,null,null,null,null,null,0]
["Волейбол ",110,49,49,18,0,0,0,0,0,0,0,0,0,1,1,0]
["Восточное боевое единоборство",111,null,null,null,null,null,0]
["Всестилевое каратэ",112,null,null,null,null,null,0]
["Гандбол",113,null,null,null,null,null,0]
["Гиревой спорт ",114,null,null,null,null,null,0]
["Го ",115,null,null,null,null,null,0]
["Гольф",116,null,null,null,null,null,0]
["Горнолыжный спорт",117,null,null,null,null,null,0]
["Городошный спорт",118,null,null,null,null,null,0]
["Гребля на байдарках и каноэ ",119,null,null,null,null,null,0]
["Гребной слалом",120,null,null,null,null,null,0]
["Гребной спорт ",121,null,null,null,null,null,0]
["Дартс",122,null,null,null,null,null,0]
["Джиу-джитсу",123,100,6,1,0,0,1,1,0,0,2,1,0]
["Дзюдо",124,11,4,3,0,0,0,0,0,0,0,0,0,1,null,1]
["Ездовой спорт",125,null,null,null,null,null,0]
["Капоэйра",126,null,null,null,null,null,0]
["Каратэ",127,null,null,null,null,null,0]
["Кендо",128,null,null,null,null,null,0]
["Керлинг",129,null,null,null,null,null,0]
["Кикбоксинг",130,null,null,null,null,null,0]
["Кинологический спорт",131,null,null,null,null,null,0]
["Киокусинкай",132,null,null,null,null,null,0]
["Компьютерный спорт",133,null,null,null,null,null,0]
["Конный спорт",134,null,null,null,null,null,0]
["Конькобежный спорт",135,null,null,null,null,null,0]
["Кореш",136,null,null,null,null,null,0]
["Кудо",137,null,null,null,null,null,0]
["Лапта",138,null,null,null,null,null,0]
["Легкая атлетика",139,172,68,121,2,2,0,0,0,0,4,1,0,1,null,1]
["Лыжное двоеборье",14,null,null,null,null,null,0]
["Лыжные гонки",141,57,17,22,11,0,0,0,0,0,0,0,0,1,1]
["Морское многоборье",142,null,null,null,null,null,0]
["Мотоциклетный спорт ",143,null,null,null,null,null,0]
["Настольный теннис",144,null,null,null,null,null,0]
["Парашютный спорт",145,null,null,null,null,null,0]
["Парусный спорт",146,null,null,null,null,null,0]
["Пауэрлифтинг",147,48,17,48,8,2,0,0,0,0,1,1,0]
["Перетягивание каната",148,null,null,null,null,null,0]
["Плавание",149,null,null,null,null,null,0]
["Планерный спорт",150,null,null,null,null,null,{"$f":"SUM(I73+J73+K73)","v":0}]
["Подводный спорт",151,null,null,null,null,null,0]
["Полиатлон",152,null,null,null,null,null,0]
["Практическая стрельба",153,null,null,null,null,null,0]
["Прыжки в воду",154,null,null,null,null,null,0]
["Прыжки на батуте",155,null,null,null,null,null,0]
["Прыжки на лыжах с трамплина",156,null,null,null,null,null,0]
["Пулевая стрельба",157,null,null,null,null,null,0]
["Пэйнтбол",158,null,null,null,null,null,0]
["Радиоспорт",159,null,null,null,null,null,0]
["Рафтинг",160,null,null,null,null,null,0]
["Регби",161,null,null,null,null,null,0]
["Роллер спорт",162,null,null,null,null,null,0]
["Рукопашный бой ",163,null,null,null,null,null,0]
["Рыболовный спорт",164,null,null,null,null,null,0]
["Сават",165,null,null,null,null,null,0]
["Самбо",166,219,37,120,5,12,3,3,0,0,4,4,0,1,null,1]
["Самолетный спорт",167,null,null,null,null,null,0]
["Санный спорт",168,null,null,null,null,null,0]
["Северное многоборье",169,null,null,null,null,null,0]
["Серфинг",170,null,null,null,null,null,0]
["Синхронное плавание",171,null,null,null,null,null,0]
["Скалолазание",172,null,null,null,null,null,0]
["Сквош",173,null,null,null,null,null,0]
["Скейтбординг",174,null,null,null,null,null,0]
["Смешанное боевое единоборство (ММА)",175,null,null,null,null,null,0]
["Сноуборд",176,null,null,null,null,null,0]
["Современное пятиборье ",177,null,null,null,null,null,0]
["Софтбол",178,null,null,null,null,null,0]
["Спорт сверхлегкой авиации",179,null,null,null,null,null,0]
["Спортивная акробатика",180,null,null,null,null,null,0]
["Спортивная аэробика ",181,108,108,99,16,10,1,1,0,0,3,3,0]
["Спортивная борьба",182,null,null,null,null,null,0]
["Спортивная гимнастика",183,116,7,3,2,1,0,0,0,0,0,0,0,3,3]
["Спортивно-прикладное собаководство",184,null,null,null,null,null,0]
["Спортивное ориентирование",185,null,null,null,null,null,0]
["Спортивный бридж",186,null,null,null,null,null,0]
["Спортивный туризм - всего",187,null,null,null,null,null,0]
[" в том числе: Северная (скандинавская) ходьба",188,null,null,null,null,null,0]
["Стендовая стрельба",189,null,null,null,null,null,0]
["Стрельба из арбалета",190,null,null,null,null,null,0]
["Стрельба из лука",191,null,null,null,null,null,0]
["Судомодельный спорт",192,null,null,null,null,null,0]
["Сумо",193,null,null,null,null,null,0]
["Тайский бокс",194,null,null,null,null,null,0]
["Танцевальный спорт",195,null,null,null,null,null,0]
["Теннис",196,null,null,null,null,null,0]
["Триатлон",197,null,null,null,null,null,0]
["Тхэквондо",198,null,null,null,null,null,0]
["Тхэквондо ИТФ",199,null,null,null,null,null,0]
["Тяжелая атлетика",200,null,null,null,null,null,0]
["Универсальный бой",201,null,null,null,null,null,0]
["Ушу",202,null,null,null,null,null,0]
["Фехтование",203,null,null,null,null,null,0]
["Фигурное катание на коньках ",204,null,null,null,null,null,0]
["Фитнес-аэробика ",205,null,null,null,null,null,0]
["Флорбол ",206,null,null,null,null,null,0]
["Фристайл",207,null,null,null,null,null,0]
["Функциональное многоборье",208,null,null,null,null,null,0]
["Футбол",209,205,24,150,0,0,0,0,0,0,3,3,0,3,1,2]
["Хоккей",210,84,4,30,0,0,0,0,0,0,2,0,0,2,1]
["Хоккей на траве",211,null,null,null,null,null,0]
["Хоккей с мячом",212,null,null,null,null,null,0]
["Художественная гимнастика",213,null,null,null,null,null,0]
["Чир спорт",214,null,null,null,null,null,{"$f":"SUM(I137+J137+K137)","v":0}]
["Шахматы",215,null,null,null,null,null,0]
["Шашки",216,null,null,null,null,null,0]
["Эстетическая гимнастика",217,null,null,null,null,null,0]
["Прикладные виды спорта – всего\n(сумма строк 219-220)",218,{"$f":"SUM(C142:C143)","v":0},{"$f":"SUM(D142:D143)","v":0},0,0,0,0,0,0,0,0,0,0,0,0,0]
["в том числе:\nвоенно-прикладные",219,null,null,null,null,null,0]
["служебно-прикладные",220,null,null,null,null,null,0]
["Национальные виды спорта – всего \n(сумма строк 222-229)",221,{"$f":"SUM(C145:C152)","v":0},{"$f":"SUM(D145:D152)","v":0},0,0,0,0,0,0,0,0,0,0,0,0,0]
["в том числе:гонки на охотничьих лыжах\n",222,null,null,null,null,null,{"$f":"SUM(I145+J145+K145)","v":0}]
["керешу",223,null,null,null,null,null,0]
["мас-рестлинг",224,null,null,null,null,null,0]
["таврели",225,null,null,null,null,null,0]
["хапсагай",226,null,null,null,null,null,0]
["хуреш",227,null,null,null,null,null,0]
["шодсанлат",228,null,null,null,null,null,0]
["якутские национальные прыжки",229,null,null,null,null,null,0]
["Виды спорта, признанные в Российской Федерации (сумма строк 231-240)",230,{"$f":"SUM(C154:C163)","v":0},{"$f":"SUM(D154:D163)","v":0},{"$f":"SUM(E154:E163)","v":0},{"$f":"SUM(F154:F163)","v":0},0,0,0,0,0,0,0,0,0,0,0]
["в том числе:\nавтомодельный спорт\n",231,null,null,null,null,null,{"$f":"SUM(I154+J154+K154)","v":0}]
["Айсшток",232,null,null,null,null,null,0]
["Водно-спасательное многоборье",233,null,null,null,null,null,0]
["Корфбол",234,null,null,null,null,null,0]
["Петанк",235,null,null,null,null,null,0]
["Регбол",236,null,null,null,null,null,0]
["Спортивная йога",237,null,null,null,null,null,0]
["Страйкбол",238,null,null,null,null,null,0]
["Флаинг диск",239,null,null,null,null,null,0]
["Футгольф",240,null,null,null,null,null,0]
["Иные виды двигательной активности (сумма строк 242-247)",241,{"$f":"SUM(C165:C170)","v":0},{"$f":"SUM(D165:D170)","v":0},"X","X","X","X","X","X","X","X","X","X",{"$f":"SUM(O165:O170)","v":0},{"$f":"SUM(P165:P170)","v":0},{"$f":"SUM(Q165:Q170)","v":0}]
["в том числе:хореография (танцы)",242,null,null,"X","X","X","X","X","X","X","X","X","X"]
["вело и пешие маршруты",243,null,null,"X","X","X","X","X","X","X","X","X","X"]
["моржевание",244,null,null,"X","X","X","X","X","X","X","X","X","X"]
["беговелы, самокаты",245,null,null,"X","X","X","X","X","X","X","X","X","X"]
["крикет",246,null,null,"X","X","X","X","X","X","X","X","X","X"]
["крокет",247,null,null,"X","X","X","X","X","X","X","X","X","X"]
["Другие ",248,null,null,null,null,null,{"$f":"SUM(I171+J171+K171)","v":0}]

{"sheet":"Раздел6","index":6,"n_rows":26,"n_cols":9,"rows_kept":26,"cut":false,"hidden":false,"merged":[[0,0,0,8],[1,0,1,8],[2,0,5,0],[2,1,5,1],[2,2,5,2],[2,3,5,3],[2,4,5,4],[2,5,2,8],[3,5,5,5],[3,6,3,8],[4,6,5,6],[4,7,4,8]]}
["Раздел VI Социально ориентированные некоммерческие организации (СОНКО)"]
["Коды по ОКЕИ: единица - 642; человек – 792; тысяча рублей – 384 (с одним десятичным знаком)"]
["Вид общественно полезной услуги в области физической культуры и массового спорта","№ строки","Количество СОНКО, оказывающих общественно полезные услуги в области физической культуры и массового спорта, ед","Количество СОНКО, получивших государственную поддержку на оказание общественно полезных услуг населению, ед","Количество человек, получивших услугу","Фактически выделено бюджетных средств на оказание услуги посредством СОНКО, тыс. Руб"]
[null,null,null,null,null,"Всего","в том числе"]
[null,null,null,null,null,null,"из федерального бюджета","из консолидированного бюджета субъекта Российской Федерации:"]
[null,null,null,null,null,null,null,"бюджет \nсубъекта Российской Федерации","бюджет муниципального образования"]
[1,2,3,4,5,6,7,8,9]
["Cпортивная подготовка по спорту глухих;",249,null,null,null,{"$f":"SUM(G8:I8)","v":0}]
["Cпортивная подготовка по спорту лиц с интеллектуальными нарушениями;",250,null,null,null,{"$f":"SUM(G9:I9)","v":0}]
["Cпортивная подготовка по спорту лиц с поражением опорно-двигательного аппарата;",251,null,null,null,0]
["Cпортивная подготовка по спорту слепых;",252,null,null,null,0]
["Cпортивная подготовка по футболу лиц с заболеванием церебральным параличом;",253,null,null,null,0]
["Пропаганда физической культуры, спорта и здорового образа жизни;",254,null,null,null,0]
["Проведение занятий физкультурно-спортивной направленности по месту проживания граждан;",255,null,null,null,0]
["Организация и проведение официальных спортивных мероприятий;",256,null,null,null,0]
["Участие в организации официальных спортивных мероприятий;",257,null,null,null,0]
["Организация и проведение официальных физкультурных (физкультурно-оздоровительных) мероприятий;",258,null,null,null,0]
["Обеспечение доступа к спортивным объектам;",259,null,null,null,0]
["Организация развития национальных видов спорта;",260,null,null,null,0]
["Организация и проведение физкультурных и спортивных мероприятий в рамках Всероссийского физкультурно-спортивного комплекса «Готов к труду и обороне» (ГТО) (за исключением тестирования выполнения нормативов испытаний комплекса ГТО);",261,null,null,null,0]
["Организация и проведение мероприятий по военно-прикладным видам спорта;",262,null,null,null,0]
["Организация и проведение мероприятий по служебно-прикладным видам спорта;",263,null,null,null,0]
["Организация и проведение всероссийских смотров физической подготовки граждан допризывного и призывного возрастов к военной службе;",264,null,null,null,0]
["Организация и проведение спортивно-оздоровительной работы по развитию физической культуры и спорта среди различных групп населения;",265,null,null,null,0]
["Организация и обеспечение экспериментальной и инновационной деятельности в области физкультуры и спорта;",266,null,null,null,0]
["Всего (сумма строк 249-266)",267,{"$f":"SUM(C8:C25)","v":0},{"$f":"SUM(D8:D25)","v":0},0,0,0,0,0]

{"sheet":"Раздел7","index":7,"n_rows":26,"n_cols":4,"rows_kept":26,"cut":false,"hidden":false,"merged":[[0,0,0,2],[1,0,1,2],[16,0,21,0]]}
["Раздел VII. Спортивное мастерство"]
["Код по ОКЕИ: человек - 792"]
["Виды спорта ","№ строки","Всего"]
[1,2,3]
["Присвоено спортивных званий - всего (сумма строк 269-271) ",268,{"$f":"SUM(C6:C8)","v":5}]
["в том числе:\n    - мастер спорта",269,5]
["    -мастер спорта международного класса и Гроссмейстер России",270,0]
["    - заслуженный  мастер спорта",271,0]
["Присвоено спортивных разрядов",272,615]
["из них:\n    - кандидат в мастера спорта",273,27]
["    - I разряд",274,44]
["Присвоено званий – заслуженный тренер России",275]
["Присвоено званий – заслуженный работник физической культуры Российской Федерации",276]
["Присуждены другие государственные почетные звания и награды",277]
["Присуждены почетные звания и награды \nсубъекта Российской Федерации",278]
[]
["Должностное лицо,\nответственное за предоставление\nпервичных статистических данных (лицо,\nуполномоченное предоставлять\nпервичные статистические данные  от\nимени юридического лица)"]
[]
[]
[]
[]
[null,"Руководитель структурного подразделения \"спортивная подготовка\", заместитель директора по УВР","Волкова О.Ю., Елисеева Д.Л."]
[null,"(должность)","(Ф.И.О.)","(подпись)"]
[]
[null,"(343 55) 6-45-91","irbitsporthkola@rambler.ru","28.12.2022 г."]
[null,"(номер \nтелефона)","E-mail","(дата составления\nконтактного документа)"]